bitfinex-derivatives/quotes_ETHF0:USTF0_20251116
["timestamp","ask_amount","ask_price","bid_price","bid_amount"]
[1763317165060,0.52092,3111.9,3111.8,3.2078]
[1763317165256,0.52092,3111.9,3109.6,0.6728]
[1763317165257,0.52099,3111.5,3111.3,0.25536831]
[1763317165463,0.52091,3112.0,3111.4,3.2078]
[1763317165663,3.21261633,3112.2,3111.3,0.25536831]
[1763317165664,3.2078,3111.8,3111.3,0.25536831]
[1763317165863,0.52091,3112.0,3111.0,3.2078]
[1763317166063,3.2078,3111.8,3111.2,0.75130936]
[1763317167164,3.72881,3111.4,3111.2,0.75130936]
[1763317167563,6.4168,3111.4,3110.4,0.6728]
[1763317167767,0.00353199,3112.0,3110.4,0.6728]
[1763317167768,3.2078,3111.0,3110.4,0.6728]
[1763317168159,0.00353199,3112.0,3110.1,3.2078]
[1763317168359,0.00353199,3112.0,3110.4,0.6728]
[1763317168360,3.2078,3110.9,3110.4,0.6728]
[1763317168668,0.52125,3109.9,3109.3,0.25427769]
[1763317168968,6.4168,3109.6,3108.1,3.2078]
[1763317169273,2.06548695,3109.6,3108.7,2.75091524]
[1763317169472,0.00481633,3109.9,3108.7,2.75091524]
[1763317169473,0.00481633,3109.9,3109.6,0.6728]
[1763317169766,0.00724523,3109.9,3109.8,3.2078]
[1763317170472,0.00724523,3109.9,3109.6,0.67621272]
[1763317170671,3.2078,3111.2,3110.4,0.6728]
[1763317170965,3.2078,3111.2,3110.5,3.2078]
[1763317171770,3.2078,3110.8,3110.5,0.00482416]
[1763317173159,0.52112,3110.7,3109.6,0.67621272]
[1763317173362,3.2078,3110.3,3109.7,3.2078]
[1763317173564,3.2078,3110.3,3109.7,5.95871524]
[1763317173874,3.2078,3111.0,3110.2,3.2078]
[1763317174465,3.72887,3111.0,3110.2,3.2078]
[1763317174771,0.5212,3110.2,3109.7,3.2078]
[1763317174974,3.2078,3110.3,3109.7,3.2078]
[1763317175172,3.72899,3110.3,3109.7,3.2078]
[1763317175474,3.72885,3111.1,3110.1,3.2078]
[1763317175679,0.52109,3110.9,3110.1,3.2078]
[1763317175872,3.2078,3110.7,3110.1,3.2078]
[1763317176074,3.2078,3110.3,3109.6,0.67621272]
[1763317176372,0.52117,3110.4,3109.6,0.67621272]
[1763317176670,0.52117,3110.5,3109.6,3.42712796]
[1763317176973,0.52117,3110.4,3109.6,3.42712796]
[1763317177164,0.5212,3110.3,3109.6,3.42712796]
[1763317177866,0.52121,3110.2,3109.6,3.42712796]
[1763317178675,3.2078,3110.2,3109.6,0.67621272]
[1763317178981,3.2078,3109.8,3109.6,0.67621272]
[1763317179480,0.52124,3110.0,3109.6,0.67621272]
[1763317179666,3.2078,3110.2,3109.6,0.67621272]
[1763317179870,3.2078,3110.2,3109.6,3.42712796]
[1763317180575,0.00779813,3111.2,3109.9,3.2078]
[1763317180576,3.72893,3110.7,3109.9,3.2078]
[1763317180774,0.52114,3110.6,3109.9,3.2078]
[1763317180975,0.52118,3110.4,3109.9,3.2078]
[1763317181176,0.52121,3110.2,3109.6,3.42712796]
[1763317181375,3.2078,3110.7,3110.4,0.6728]
[1763317181579,3.2078,3111.1,3110.5,3.2078]
[1763317182689,3.2078,3110.6,3110.4,0.6728]
[1763317182978,3.2078,3111.1,3110.4,0.6728]
[1763317184079,0.52114,3110.6,3110.4,0.6728]
[1763317184378,3.72892,3110.7,3110.4,0.6728]
[1763317184883,0.52114,3110.6,3110.4,0.6728]
[1763317185079,0.52114,3110.6,3109.9,3.2078]
[1763317185080,0.52121,3110.2,3109.9,3.2078]
[1763317185275,3.2078,3110.7,3110.1,0.6728]
[1763317185478,0.52119,3110.3,3110.1,0.6728]
[1763317185774,3.2078,3110.7,3110.1,0.6728]
[1763317186380,0.52118,3110.4,3110.1,0.6728]
[1763317186880,3.2078,3110.7,3110.1,0.6728]
[1763317187178,0.52116,3110.5,3110.1,0.6728]
[1763317187479,0.52117,3110.4,3110.1,0.6728]
[1763317187683,3.2078,3110.7,3110.1,0.6728]
[1763317187882,0.52129,3109.7,3109.6,0.67621272]
[1763317188274,0.52129,3109.7,3109.6,0.00341272]
[1763317189082,3.2078,3110.4,3110.1,0.6695]
[1763317189272,0.52119,3110.3,3110.1,0.6695]
[1763317189977,3.72898,3110.4,3110.1,0.6695]
[1763317190184,3.2078,3110.4,3110.1,0.6695]
[1763317190371,3.2078,3110.8,3110.3,5.95871524]
[1763317190574,0.00779813,3111.2,3110.3,5.95871524]
[1763317190768,1.0,3111.3,3110.1,0.6695]
[1763317190769,0.52088,3112.2,3111.5,0.6695]
[1763317190968,0.52088,3112.2,3111.8,3.2078]
[1763317191174,0.52087,3112.2,3111.8,3.2078]
[1763317191379,0.52085,3112.3,3111.8,1.4798]
[1763317191580,3.209,3111.8,3110.4,0.6695]
[1763317191774,3.209,3111.8,3110.4,0.67203822]
[1763317191775,3.2078,3110.6,3110.4,0.67203822]
[1763317191975,3.72894,3110.6,3110.4,0.67203822]
[1763317192280,3.72894,3110.6,3110.4,0.00253822]
[1763317192488,3.2078,3110.6,3110.4,0.67203822]
[1763317192679,0.52109,3110.9,3110.4,0.67203822]
[1763317192881,3.2078,3111.2,3110.4,0.67203822]
[1763317193088,3.2078,3111.2,3110.5,3.2078]
[1763317193277,3.2078,3112.2,3111.2,0.6695]
[1763317193480,3.2078,3113.4,3112.8,0.6695]
[1763317193979,0.52069,3113.3,3112.8,0.6695]
[1763317194181,3.2078,3113.0,3112.8,0.6695]
[1763317194483,3.21197263,3113.0,3112.8,0.67258182]
[1763317195175,3.73271263,3113.0,3112.8,0.67258182]
[1763317195572,3.21197263,3113.0,3112.8,0.67258182]
[1763317195880,0.00417263,3113.0,3112.8,0.67258182]
[1763317196382,3.21197263,3113.0,3112.8,0.67258182]
[1763317196980,0.52075,3112.9,3112.8,0.67258182]
[1763317197188,3.21197263,3113.0,3112.8,0.67258182]
[1763317197484,3.73271263,3113.0,3112.8,0.67258182]
[1763317197789,0.52077,3112.8,3112.6,0.00482416]
[1763317198289,0.52083,3112.5,3112.0,0.6695]
[1763317198492,3.2078,3112.3,3112.0,0.6695]
[1763317198793,3.2078,3112.3,3112.0,0.67259315]
[1763317198988,3.2078,3112.8,3112.2,3.2078]
[1763317200479,3.2078,3112.8,3112.0,0.67259315]
[1763317200480,0.52088,3112.1,3112.0,0.00309315]
[1763317200689,3.2078,3112.3,3112.0,0.67259315]
[1763317201082,3.2078,3112.8,3112.1,6.0]
[1763317201377,3.2078,3112.8,3112.0,0.67259315]
[1763317201378,3.2078,3112.8,3112.3,3.2078]
[1763317201579,0.00417263,3113.0,3112.8,0.6695]
[1763317203580,3.2078,3113.8,3113.6,0.6695]
[1763317204190,0.52062,3113.7,3112.8,0.6695]
[1763317204384,3.2078,3113.4,3112.8,0.6695]
[1763317204792,3.21588752,3113.4,3112.8,0.67431595]
[1763317205089,3.21588752,3113.4,3112.8,3.88211595]
[1763317205980,0.52075,3112.9,3112.8,0.67431595]
[1763317206183,3.2078,3112.9,3112.8,0.00481595]
[1763317206390,3.2078,3112.9,3112.0,0.67259315]
[1763317206690,0.52077,3112.8,3112.1,3.2078]
[1763317206887,3.72862,3112.5,3112.0,0.67259315]
[1763317207087,3.2078,3112.1,3111.2,0.6695]
[1763317207293,3.2078,3111.3,3110.4,0.6695]
[1763317207496,0.52119,3110.3,3110.2,3.2078]
[1763317207693,0.52128,3109.8,3109.6,0.6695]
[1763317207896,6.4168,3110.5,3109.0,3.2078]
[1763317208083,3.72919,3109.1,3109.0,0.00293885]
[1763317208283,3.72919,3109.1,3109.0,0.67243885]
[1763317208284,3.2078,3109.1,3109.0,0.67243885]
[1763317208485,3.2078,3109.9,3109.0,0.67243885]
[1763317208688,3.2078,3109.9,3109.1,3.2078]
[1763317209294,0.52128,3109.8,3109.1,3.2078]
[1763317209799,3.2078,3109.9,3109.1,3.2078]
[1763317210193,3.2078,3109.9,3109.0,0.67243885]
[1763317210395,3.2078,3109.9,3109.0,3.88023885]
[1763317211191,3.2078,3109.9,3109.5,0.6695]
[1763317211395,0.00299574,3110.5,3110.4,0.6695]
[1763317211995,3.2078,3110.8,3110.4,0.6695]
[1763317212603,3.2078,3111.8,3110.7,3.2078]
[1763317212898,3.2078,3111.4,3110.4,0.6695]
[1763317213103,3.21110191,3111.4,3111.3,0.6695]
[1763317213307,3.21110191,3111.4,3111.3,0.67243655]
[1763317213597,3.21110191,3111.4,3111.3,0.00293655]
[1763317213799,9.21110191,3111.4,3110.3,3.21262376]
[1763317213995,0.52116,3110.5,3110.3,3.21262376]
[1763317214301,0.52121,3110.2,3109.6,3.2078]
[1763317214498,3.2078,3110.4,3109.6,3.2078]
[1763317214695,0.52121,3110.2,3109.6,3.21006187]
[1763317214896,3.2078,3110.4,3109.6,3.21006187]
[1763317215092,3.72908,3109.8,3109.7,0.00482376]
[1763317215798,3.2078,3109.8,3109.7,0.00482376]
[1763317215998,0.00482376,3110.1,3110.0,0.6736]
[1763317216502,0.00482376,3110.1,3110.0,3.8814]
[1763317216702,3.2078,3110.7,3110.0,9.8814]
[1763317217004,3.2078,3110.7,3110.0,3.8814]
[1763317217601,3.21262376,3110.7,3110.0,3.8814]
[1763317217991,3.73375376,3110.7,3110.0,3.8814]
[1763317218199,0.52116,3110.5,3110.0,3.8814]
[1763317218399,3.21262376,3110.7,3110.0,3.8814]
[1763317218602,0.52118,3110.4,3110.0,3.8814]
[1763317218795,3.21262376,3110.7,3110.0,3.8814]
[1763317219194,0.52119,3110.3,3110.0,3.8814]
[1763317219600,3.2078,3110.1,3109.7,0.00482376]
[1763317219805,0.00482376,3110.7,3109.7,0.00482376]
[1763317219806,3.2078,3110.5,3110.0,0.6899]
[1763317220697,0.00482376,3110.7,3110.3,3.2078]
[1763317221100,0.00482376,3110.7,3110.0,0.6899]
[1763317221496,0.00482376,3110.7,3110.3,3.2078]
[1763317222998,3.72898,3110.4,3110.0,0.6899]
[1763317223305,3.2078,3110.6,3110.0,0.6899]
[1763317223505,0.52118,3110.4,3110.0,0.6899]
[1763317223698,3.2078,3110.1,3110.0,0.6899]
[1763317223894,0.5212,3110.3,3110.0,0.6899]
[1763317224102,0.5212,3110.3,3109.7,0.00482376]
[1763317224103,0.52127,3109.8,3109.7,0.00482376]
[1763317224506,0.52139,3109.1,3109.0,0.6695]
[1763317224706,3.2078,3109.2,3108.4,3.2078]
[1763317225003,3.2078,3109.6,3108.8,3.2078]
[1763317225301,3.2078,3109.6,3108.6,0.6899]
[1763317225494,3.2078,3109.2,3108.8,0.00482376]
[1763317226095,3.21262376,3109.4,3108.8,3.21262376]
[1763317226300,3.2078,3109.2,3108.8,3.21262376]
[1763317227316,0.52139,3109.1,3108.8,0.00482376]
[1763317227711,3.2078,3109.2,3108.8,0.00482376]
[1763317228610,0.00482376,3109.4,3108.9,3.2078]
[1763317229811,0.00482376,3109.4,3108.8,0.00482376]
[1763317229812,0.5214,3109.1,3108.8,0.00482376]
[1763317230010,3.2078,3109.2,3108.8,0.00482376]
[1763317231713,0.5214,3109.0,3108.8,0.00482376]
[1763317232013,3.2078,3109.2,3107.7,0.6695]
[1763317232014,3.209,3109.1,3107.7,0.6695]
[1763317232308,3.2078,3108.1,3107.7,0.6695]
[1763317232512,0.52153,3108.3,3107.7,0.6695]
[1763317232706,3.2078,3108.5,3107.7,0.6695]
[1763317233015,3.2078,3108.1,3107.8,0.00482376]
[1763317233410,3.2078,3108.6,3107.8,0.00482376]
[1763317233813,3.72927,3108.6,3107.8,0.00482376]
[1763317234014,3.2078,3108.6,3108.0,3.2078]
[1763317234208,3.2078,3109.0,3108.6,0.6899]
[1763317235708,3.7292,3109.0,3108.6,0.6899]
[1763317236017,0.52145,3108.8,3108.6,0.6899]
[1763317236311,3.2078,3109.0,3108.0,3.2078]
[1763317236912,0.52148,3108.6,3108.0,3.2078]
[1763317237214,0.52148,3108.6,3107.8,0.00482376]
[1763317237215,0.52154,3108.2,3107.8,0.00482376]
[1763317237413,3.2078,3108.3,3107.8,0.00482376]
[1763317238008,3.72932,3108.3,3107.8,0.00482376]
[1763317238409,3.2078,3108.3,3107.8,0.00482376]
[1763317239812,0.52154,3108.2,3107.8,0.00482376]
[1763317240213,3.2078,3107.9,3107.8,0.00482376]
[1763317240713,0.52168,3107.4,3107.2,0.6899]
[1763317240909,3.2078,3107.3,3106.8,0.6899]
[1763317241114,3.7295,3107.3,3106.8,0.6899]
[1763317241314,3.2078,3107.3,3106.8,0.6899]
[1763317241617,3.21027073,3107.3,3107.2,0.6899]
[1763317242516,0.00482376,3107.4,3107.2,3.17758656]
[1763317242913,0.00482376,3107.4,3107.2,0.6899]
[1763317243614,0.00885853,3107.4,3107.2,0.6899]
[1763317245317,3.2078,3108.3,3107.2,0.6899]
[1763317245512,3.2078,3108.3,3107.4,3.2078]
[1763317245914,0.52157,3108.0,3107.4,3.2078]
[1763317246118,3.2078,3108.3,3107.2,0.6899]
[1763317246321,0.5216,3107.8,3107.4,3.21262376]
[1763317246519,0.52165,3107.5,3107.4,3.21262376]
[1763317246821,0.52161,3107.8,3107.4,3.21262376]
[1763317247021,3.2078,3107.9,3107.4,3.21262376]
[1763317247219,0.52165,3107.5,3107.4,3.21262376]
[1763317247420,0.52164,3107.7,3107.4,3.21262376]
[1763317247624,0.52165,3107.5,3107.4,0.00482376]
[1763317247819,3.2078,3107.5,3107.4,0.00482376]
[1763317248021,3.72945,3107.5,3107.4,0.00482376]
[1763317248523,3.2078,3107.5,3107.4,0.00482376]
[1763317249121,3.2078,3108.0,3107.4,0.00482376]
[1763317249325,0.52159,3107.9,3107.4,0.00482376]
[1763317250022,3.72937,3108.0,3107.4,0.00482376]
[1763317250422,0.52159,3107.9,3107.4,0.00482376]
[1763317250716,0.52161,3107.8,3107.4,0.00482376]
[1763317251221,0.52164,3107.7,3107.4,0.00482376]
[1763317251421,3.2078,3108.0,3107.4,0.00482376]
[1763317251919,0.52159,3107.9,3107.4,0.00482376]
[1763317252114,3.2078,3108.0,3107.4,0.00482376]
[1763317252913,0.52159,3107.9,3107.4,0.00482376]
[1763317253110,0.52165,3107.6,3107.4,0.00482376]
[1763317253318,0.52164,3107.6,3107.4,0.00482376]
[1763317253517,0.52163,3107.7,3107.4,0.00482376]
[1763317254117,0.52164,3107.6,3107.4,0.00482376]
[1763317254315,3.72945,3107.5,3107.4,0.00482376]
[1763317254619,6.4168,3107.5,3106.0,1.10587262]
[1763317254814,3.2078,3106.3,3105.9,0.6688]
[1763317255014,2.82127976,3106.3,3105.9,0.6688]
[1763317255918,2.82127976,3106.3,3105.9,0.67282193]
[1763317255919,0.52189,3106.1,3105.9,0.67282193]
[1763317256124,0.52582169,3106.1,3105.9,0.00402193]
[1763317256309,0.52582169,3106.1,3105.2,0.6688]
[1763317256310,0.52198,3105.6,3105.2,0.6688]
[1763317256618,0.52198,3105.6,3104.9,3.2078]
[1763317256619,3.2078,3105.7,3104.9,3.2078]
[1763317256920,0.52201,3105.4,3104.9,3.2078]
[1763317257123,3.2078,3105.2,3104.4,3.2078]
[1763317257323,3.2078,3105.2,3104.5,0.67253804]
[1763317257922,0.8603348,3105.9,3104.5,0.00373804]
[1763317257923,0.52214,3104.7,3104.5,0.00373804]
[1763317258221,3.2078,3104.8,3104.5,0.00373804]
[1763317258617,3.2078,3105.3,3104.5,0.00373804]
[1763317259214,3.21293169,3106.1,3104.8,0.6688]
[1763317259215,3.2078,3104.9,3104.8,0.6688]
[1763317259412,3.2078,3104.9,3104.5,0.00373804]
[1763317259916,3.2078,3104.9,3104.8,0.6688]
[1763317260528,0.8603348,3106.0,3104.8,9.8766]
[1763317260714,3.2078,3105.8,3105.6,0.6688]
[1763317260916,3.2078,3105.8,3104.9,3.2078]
[1763317261313,3.2078,3105.3,3104.8,0.6688]
[1763317261613,0.52193,3105.9,3105.6,0.6688]
[1763317261614,3.2078,3105.9,3105.6,0.6688]
[1763317262120,0.00393169,3106.1,3105.6,0.6688]
[1763317263418,0.52198,3105.6,3104.8,3.8766]
[1763317263921,3.2078,3105.3,3104.8,0.6688]
[1763317264625,3.2078,3105.8,3105.0,3.2078]
[1763317264827,3.2078,3105.8,3105.6,0.6688]
[1763317265824,3.72974,3105.8,3105.6,0.6688]
[1763317266030,3.2078,3105.8,3105.6,0.6688]
[1763317266218,9.2078,3105.8,3104.8,0.6688]
[1763317266421,0.52211,3104.8,3104.5,0.00373804]
[1763317266612,3.2078,3104.9,3104.8,0.6688]
[1763317266817,3.72983,3105.3,3104.8,0.6688]
[1763317267128,3.2078,3104.9,3104.5,0.00373804]
[1763317267520,3.2078,3104.9,3104.8,0.6688]
[1763317268929,0.86426649,3106.1,3104.8,0.6688]
[1763317268930,3.2078,3105.4,3104.8,0.6688]
[1763317269530,0.52205,3105.2,3104.8,0.6688]
[1763317269717,3.2078,3104.9,3104.5,0.00373804]
[1763317269924,3.2078,3104.9,3104.8,0.6688]
[1763317270833,3.7299,3104.9,3104.5,0.00373804]
[1763317271332,3.2078,3104.9,3104.5,0.00373804]
[1763317271522,0.52213,3104.7,3104.5,0.00373804]
[1763317272127,3.2078,3104.9,3104.5,0.00373804]
[1763317272334,0.52213,3104.7,3104.5,0.00373804]
[1763317274233,6.0,3104.6,3103.7,0.03222013]
[1763317274526,3.2078,3104.3,3103.8,0.6688]
[1763317274934,3.73,3104.3,3103.8,0.6688]
[1763317275130,0.52224,3104.1,3103.8,0.672876]
[1763317275333,3.73006,3103.9,3103.8,0.004076]
[1763317275533,3.21193813,3103.9,3103.8,0.004076]
[1763317276832,3.21193813,3103.9,3102.3,3.2078]
[1763317277130,3.21193813,3103.9,3103.1,0.6487]
[1763317277131,3.2078,3103.3,3103.1,0.6487]
[1763317277340,0.52241,3103.0,3102.3,3.2078]
[1763317277539,3.2078,3103.3,3103.1,0.6487]
[1763317277735,3.2078,3103.3,3103.1,0.65271712]
[1763317278135,3.73016,3103.3,3103.1,0.65271712]
[1763317278448,0.52249,3102.6,3102.4,0.6688]
[1763317278737,3.2078,3102.7,3102.4,0.6688]
[1763317279037,3.2078,3102.7,3101.4,10.377]
[1763317279038,3.209,3102.0,3099.7,4.31367262]
[1763317279228,3.2078,3100.3,3099.6,0.6227]
[1763317279444,3.21191837,3100.3,3099.6,0.6257161]
[1763317279634,3.2078,3099.7,3099.6,0.0030161]
[1763317279841,3.2078,3099.7,3098.4,0.25023037]
[1763317280150,3.2078,3098.6,3098.2,0.6227]
[1763317280351,3.2078,3098.6,3097.5,0.6227]
[1763317280644,3.2078,3097.8,3097.6,0.52331]
[1763317280851,0.00484035,3098.7,3097.8,0.6227]
[1763317281043,0.00484035,3098.7,3098.5,0.52315]
[1763317281348,0.00484035,3098.7,3097.8,0.6227]
[1763317281349,0.00484035,3098.7,3098.2,3.2078]
[1763317281540,0.00484035,3098.7,3097.8,0.6227]
[1763317281849,3.2078,3098.6,3097.8,0.6227]
[1763317282252,3.2078,3098.2,3097.7,3.2078]
[1763317282439,3.2078,3098.2,3097.8,0.6227]
[1763317282639,3.2078,3098.2,3097.2,0.09353031]
[1763317282848,3.2078,3097.8,3097.2,0.09353031]
[1763317283047,3.2078,3097.4,3097.2,0.09353031]
[1763317283250,3.2078,3098.1,3097.3,3.2078]
[1763317283438,0.0078984,3098.7,3095.3,3.2078]
[1763317283439,3.2078,3097.4,3095.3,3.2078]
[1763317283640,3.2078,3096.4,3095.6,3.2078]
[1763317283836,0.00484035,3096.7,3096.0,0.6227]
[1763317284250,3.2078,3096.6,3096.0,0.6227]
[1763317284547,3.2078,3096.2,3096.0,0.00256487]
[1763317285348,3.2078,3096.2,3096.0,0.62526487]
[1763317285552,3.21044068,3096.6,3096.0,0.62526487]
[1763317285749,3.2078,3098.4,3096.9,0.6227]
[1763317286054,3.2078,3098.4,3097.8,0.6227]
[1763317286248,4.575,3100.7,3097.8,0.6227]
[1763317286249,3.2078,3098.0,3097.8,0.6227]
[1763317286552,3.2078,3098.9,3097.8,0.6227]
[1763317286747,0.00484035,3098.7,3098.0,3.21264035]
[1763317286941,0.00262506,3098.9,3098.7,0.6227]
[1763317287152,3.2078,3100.8,3099.6,0.6227]
[1763317287355,3.2078,3100.8,3100.0,3.2078]
[1763317287648,3.2078,3100.8,3099.7,3.2078]
[1763317287852,3.2078,3100.8,3099.6,0.6227]
[1763317287853,3.2078,3101.4,3100.3,3.2078]
[1763317288146,0.00484035,3101.2,3100.5,0.00484035]
[1763317288352,0.00321471,3101.4,3101.0,0.6227]
[1763317288549,3.2078,3102.0,3097.9,3.2078]
[1763317288550,3.2078,3100.5,3097.9,3.2078]
[1763317288743,3.2078,3100.5,3097.0,0.6227]
[1763317288744,3.2078,3099.1,3099.0,0.6227]
[1763317288939,3.2078,3099.6,3099.0,0.6227]
[1763317289138,3.2078,3100.1,3100.0,0.6227]
[1763317289346,3.2078,3100.1,3100.0,1.14562]
[1763317289553,3.21130535,3100.1,3100.0,1.14961853]
[1763317289744,3.2078,3100.2,3100.1,0.5229]
[1763317290049,3.2078,3100.2,3100.0,0.00399853]
[1763317290253,3.2078,3100.2,3099.0,0.6227]
[1763317290452,3.2078,3099.4,3099.0,0.6227]
[1763317290754,3.2078,3099.8,3099.0,0.6227]
[1763317290947,3.2078,3099.8,3099.6,0.52298]
[1763317291153,3.21101209,3099.8,3099.6,0.52668234]
[1763317291356,3.21101209,3099.8,3099.7,0.52297]
[1763317291557,0.00321209,3099.8,3099.7,6.52297]
[1763317291752,0.00484035,3100.0,3099.9,0.52293]
[1763317291958,0.00484035,3100.0,3099.8,0.6227]
[1763317292158,0.00484035,3100.0,3099.6,0.00370234]
[1763317292458,3.2078,3099.7,3098.0,0.6227]
[1763317292659,3.2078,3099.1,3098.0,0.6227]
[1763317292859,3.2078,3098.7,3098.0,0.6227]
[1763317293054,3.2078,3098.7,3098.2,0.52321]
[1763317293353,3.21039655,3098.7,3098.2,0.00254642]
[1763317293862,3.2078,3099.1,3098.8,0.5231]
[1763317294158,3.2078,3099.1,3098.9,0.52309]
[1763317294960,3.21027955,3099.1,3098.9,0.52309]
[1763317295755,3.2078,3099.5,3099.4,0.52302]
[1763317296059,4.035e-05,3100.0,3099.8,1.14565]
[1763317296257,3.2078,3099.9,3099.0,0.52308]
[1763317296464,3.2078,3099.5,3099.3,0.52303]
[1763317296953,4.035e-05,3100.0,3099.8,0.52295]
[1763317297755,4.035e-05,3100.0,3098.7,0.6227]
[1763317297756,3.2078,3099.9,3098.9,3.2078]
[1763317297957,3.21112604,3099.9,3099.7,0.52295]
[1763317298160,3.21112604,3099.9,3099.7,0.52296]
[1763317299052,3.21112604,3099.9,3099.2,3.2078]
[1763317299253,3.21112604,3099.9,3099.7,0.52296]
[1763317300354,2.604e-05,3099.9,3099.8,9.2078]
[1763317300658,3.2078,3102.6,3100.0,0.6227]
[1763317300856,3.7964,3103.0,3102.5,0.5225]
[1763317301054,3.7964,3103.0,3102.4,3.2078]
[1763317301055,3.7964,3103.0,3102.4,0.5225]
[1763317301252,3.7964,3103.0,3102.4,3.7303]
[1763317301463,0.5886,3104.0,3100.0,0.6227]
[1763317301464,3.2078,3103.9,3102.8,3.2078]
[1763317301654,3.21062579,3103.9,3103.0,0.00484035]
[1763317301856,3.2078,3103.3,3103.0,0.00484035]
[1763317302058,0.52239,3103.2,3103.0,0.00484035]
[1763317302258,0.52235,3103.4,3103.0,0.00484035]
[1763317302457,3.21264035,3103.7,3103.0,0.00484035]
[1763317303860,3.21264035,3103.7,3103.5,0.52232]
[1763317303861,0.00484035,3103.7,3103.5,0.52232]
[1763317304058,0.00484035,3103.7,3103.1,3.2078]
[1763317304059,0.52714035,3103.7,3103.1,3.2078]
[1763317304458,0.00484035,3103.7,3103.1,3.2078]
[1763317304858,3.21264035,3103.7,3103.0,0.00484035]
[1763317305471,0.5886,3103.0,3102.8,0.00371369]
[1763317306059,0.5886,3103.0,3102.8,3.21151369]
[1763317307164,3.2078,3102.9,3101.8,3.2078]
[1763317307359,3.2078,3102.0,3101.5,3.2078]
[1763317307673,3.2078,3102.4,3101.5,3.2078]
[1763317308057,3.2078,3102.0,3101.5,0.00337818]
[1763317308565,0.00484035,3102.1,3101.5,0.00337818]
[1763317308762,0.00484035,3102.1,3101.5,3.21117818]
[1763317309472,3.2078,3101.8,3101.5,0.00337818]
[1763317309656,0.00484035,3102.1,3101.7,3.2078]
[1763317309857,3.2078,3102.7,3101.7,3.2078]
[1763317310059,3.2078,3102.7,3101.5,6.00337818]
[1763317310060,3.2078,3102.7,3102.2,3.2078]
[1763317310267,0.52249,3102.6,3102.2,3.2078]
[1763317310664,0.52249,3102.6,3102.4,0.52251]
[1763317310966,0.52249,3102.6,3102.2,3.2078]
[1763317310967,3.2078,3103.1,3102.9,0.52242]
[1763317311169,3.2078,3103.1,3102.2,3.21264035]
[1763317312567,3.2078,3103.1,3102.2,0.00484035]
[1763317312764,0.9267,3102.3,3102.2,0.00484035]
[1763317312965,3.2078,3102.5,3102.2,0.00484035]
[1763317313164,0.9267,3102.3,3102.2,0.00484035]
[1763317313868,6.9267,3102.3,3101.5,0.00337818]
[1763317314170,3.2078,3101.7,3101.5,0.00337818]
[1763317314374,3.21099074,3101.7,3101.5,0.00337818]
[1763317314874,0.00319074,3101.7,3101.5,0.00337818]
[1763317315172,3.2078,3102.8,3101.6,6.0]
[1763317315470,3.2078,3102.8,3102.4,3.2078]
[1763317316267,3.21165459,3102.8,3102.0,3.2078]
[1763317316464,0.00385459,3102.8,3102.4,3.2078]
[1763317316669,0.00385459,3102.8,3102.0,3.2078]
[1763317316870,0.00385459,3102.8,3102.4,3.2078]
[1763317318572,0.00385459,3102.8,3102.0,3.2078]
[1763317318775,3.21165459,3102.8,3102.0,3.2078]
[1763317318968,4.1345,3102.3,3101.5,3.21117818]
[1763317319370,0.52261,3101.9,3101.7,0.52263]
[1763317319570,0.52258,3102.0,3101.8,0.52261]
[1763317319968,0.52257,3102.1,3101.5,3.21117818]
[1763317320286,4.1345,3102.3,3101.5,3.21117818]
[1763317320469,3.21165459,3102.8,3101.5,3.21117818]
[1763317320671,3.2078,3102.7,3101.6,3.2078]
[1763317321073,3.2078,3101.8,3101.5,0.00337818]
[1763317321270,3.2078,3101.8,3100.7,3.2078]
[1763317321575,3.2078,3101.0,3100.3,3.2078]
[1763317322177,4.1345,3101.4,3100.3,3.21082707]
[1763317323068,0.00484035,3101.6,3101.1,3.2078]
[1763317323267,0.00484035,3101.6,3101.5,3.2078]
[1763317323784,3.2078,3102.7,3101.5,9.2078]
[1763317323975,3.2078,3102.7,3101.9,3.2078]
[1763317324476,0.00385459,3102.8,3102.4,3.2078]
[1763317326282,0.00385459,3102.8,3101.4,0.9191]
[1763317326283,3.2078,3102.6,3101.4,3.2078]
[1763317326589,0.00385459,3102.8,3101.8,3.2078]
[1763317326876,3.2078,3102.4,3101.8,3.2078]
[1763317327277,3.2078,3102.3,3101.8,3.2078]
[1763317327878,4.1345,3102.3,3101.4,3.2078]
[1763317328976,3.2078,3101.9,3101.4,3.2078]
[1763317329176,0.9267,3102.3,3101.0,3.2078]
[1763317329177,3.2078,3101.5,3101.0,3.2078]
[1763317329383,3.2078,3101.9,3101.0,3.2078]
[1763317330078,1.77664247,3102.3,3101.0,3.2078]
[1763317330079,3.2078,3101.5,3101.0,3.2078]
[1763317330274,3.2078,3101.9,3101.0,3.2078]
[1763317331271,3.2078,3101.9,3101.5,3.2078]
[1763317331474,0.9267,3101.4,3100.3,3.21082707]
[1763317331680,3.2078,3100.4,3100.3,0.00302707]
[1763317331875,3.21014979,3100.4,3100.3,0.00302707]
[1763317332077,3.21014979,3100.4,3099.5,3.2078]
[1763317332282,3.21014979,3100.4,3099.1,3.2078]
[1763317332678,3.2078,3099.4,3098.9,0.83329322]
[1763317332986,0.00484035,3099.5,3099.0,3.2078]
[1763317333178,0.00484035,3099.5,3099.0,3.2109633]
[1763317335775,3.2078,3099.8,3099.4,3.2078]
[1763317336182,3.2078,3099.8,3099.0,0.0031633]
[1763317336376,3.2078,3099.3,3099.0,0.0031633]
[1763317337181,3.2078,3099.3,3098.2,3.2078]
[1763317337390,3.2078,3098.7,3098.2,3.2078]
[1763317337890,3.2078,3098.7,3097.8,3.2078]
[1763317338183,3.2078,3098.7,3097.8,3.21034126]
[1763317338593,3.2078,3098.7,3098.2,3.2078]
[1763317338792,3.2078,3098.7,3097.8,3.21034126]
[1763317339283,0.52317,3098.5,3098.2,0.52322]
[1763317339483,0.52317,3098.5,3098.3,0.5232]